fUST/lending_fUST_20241229
["ID","MTS","AMOUNT","RATE_DAILY","PERIOD"]
[346950126,1735419040453,-242.18,0.00015512,2]
[346950127,1735419040463,-500.0,0.00015512,2]
[346950128,1735419040472,-500.0,0.00015512,2]
[346950129,1735419040481,-500.0,0.00015512,2]
[346950130,1735419040490,-500.0,0.00015513,2]
[346950131,1735419040499,-466.28344907,0.00015513,2]
[346950132,1735419040510,-33.71655093,0.00015513,2]
[346950133,1735419040520,-500.0,0.00015513,2]
[346950134,1735419040529,-310.23104494,0.00015513,2]
[346950135,1735419040541,-189.76895506,0.00015513,2]
[346950136,1735419040550,-500.0,0.00015513,2]
[346950137,1735419040560,-500.0,0.00015513,2]
[346950138,1735419040569,-500.0,0.00015513,2]
[346950139,1735419040578,-500.0,0.00015513,2]
[346950140,1735419040587,-500.0,0.00015513,2]
[346950141,1735419040596,-235.87,0.00015513,2]
[346950142,1735419040606,-500.0,0.00015513,2]
[346950143,1735419040615,-500.0,0.00015513,2]
[346950144,1735419040624,-364.11440527,0.00015513,2]
[346950145,1735419040633,-619.9,0.00015513,2]
[346950146,1735419040642,-265.72210654,0.00015513,2]
[346950189,1735419046209,-234.27789346,0.00015513,2]
[346950190,1735419046219,-544.2,0.00015513,2]
[346950191,1735419046228,-500.0,0.00015513,2]
[346950192,1735419046237,-500.0,0.00015513,2]
[346950193,1735419046246,-500.0,0.00015513,2]
[346950194,1735419046255,-500.0,0.00015513,2]
[346950195,1735419046264,-500.0,0.00015513,2]
[346950196,1735419046273,-500.0,0.00015513,2]
[346950197,1735419046283,-500.0,0.00015513,2]
[346950198,1735419046292,-500.0,0.00015513,2]
[346950199,1735419046301,-162.32,0.00015513,2]
[346950200,1735419046310,-500.0,0.00015513,2]
[346950201,1735419046320,-500.0,0.00015513,2]
[346950202,1735419046329,-186.81418222,0.00015513,2]
[346950203,1735419046343,-313.18581778,0.00015513,2]
[346950204,1735419046352,-575.24,0.00015513,2]
[346950205,1735419046361,-340.27349244,0.00015513,2]
[346950206,1735419046370,-576.70977446,0.00015513,2]
[346950207,1735419046379,-500.0,0.00015513,2]
[346950208,1735419046389,-509.26,0.00015513,2]
[346950209,1735419046398,-500.0,0.00015513,2]
[346950210,1735419046407,-500.0,0.00015513,2]
[346950211,1735419046417,-500.0,0.00015513,2]
[346950212,1735419046426,-500.0,0.00015513,2]
[346950213,1735419046435,-500.0,0.00015513,2]
[346950214,1735419046444,-500.0,0.00015513,2]
[346950215,1735419046453,-500.0,0.00015513,2]
[346950216,1735419046463,-500.0,0.00015513,2]
[346950217,1735419046472,-500.0,0.00015513,2]
[346950218,1735419046481,-500.0,0.00015513,2]
[346950219,1735419046490,-500.0,0.00015513,2]
[346950220,1735419046499,-239.32648974,0.00015513,2]
[346950221,1735419046511,-260.67351026,0.00015513,2]
[346950222,1735419046520,-500.0,0.00015513,2]
[346950223,1735419046530,-500.0,0.00015513,2]
[346950224,1735419046539,-500.0,0.00015513,2]
[346950225,1735419046548,-500.0,0.00015513,2]
[346950226,1735419046557,-500.0,0.00015513,2]
[346950227,1735419046568,-500.0,0.00015513,2]
[346950228,1735419046577,-500.0,0.00015513,2]
[346950229,1735419046588,-500.0,0.00015513,2]
[346950230,1735419046597,-500.0,0.00015513,2]
[346950231,1735419046606,-500.0,0.00015513,2]
[346950232,1735419046615,-500.0,0.00015513,2]
[346950233,1735419046625,-500.0,0.00015513,2]
[346950234,1735419046634,-500.0,0.00015513,2]
[346950235,1735419046643,-500.0,0.00015513,2]
[346950236,1735419046652,-500.0,0.00015513,2]
[346950237,1735419046661,-500.0,0.00015513,2]
[346950238,1735419046670,-500.0,0.00015513,2]
[346950239,1735419046680,-500.0,0.00015513,2]
[346950240,1735419046689,-500.0,0.00015513,2]
[346950241,1735419046698,-437.24,0.00015513,2]
[346950242,1735419046707,-500.0,0.00015513,2]
[346950243,1735419046716,-500.0,0.00015513,2]
[346950244,1735419046811,-500.0,0.00015513,2]
[346950245,1735419046822,-500.0,0.00015513,2]
[346950246,1735419046831,-585.24,0.00015513,2]
[346950247,1735419046840,-500.0,0.00015513,2]
[346950248,1735419046850,-500.0,0.00015513,2]
[346950249,1735419046859,-500.0,0.00015513,2]
[346950250,1735419046868,-500.0,0.00015513,2]
[346950251,1735419046877,-500.0,0.00015513,2]
[346950252,1735419046886,-500.0,0.00015514,2]
[346950253,1735419046896,-500.0,0.00015514,2]
[346950254,1735419046905,-500.0,0.00015514,2]
[346950255,1735419046914,-500.0,0.00015514,2]
[346950256,1735419046923,-500.0,0.00015514,2]
[346950257,1735419046932,-500.0,0.00015514,2]
[346950258,1735419046941,-500.0,0.00015514,2]
[346950259,1735419046950,-500.0,0.00015514,2]
[346950260,1735419046959,-500.0,0.00015514,2]
[346950261,1735419046969,-500.0,0.00015514,2]
[346950262,1735419046978,-500.0,0.00015514,2]
[346950263,1735419046987,-500.0,0.00015514,2]
[346950264,1735419046996,-500.0,0.00015514,2]
[346950265,1735419047005,-500.0,0.00015514,2]
[346950266,1735419047014,-500.0,0.00015514,2]
[346950267,1735419047023,-500.0,0.00015514,2]
[346950268,1735419047033,-500.0,0.00015514,2]
[346950269,1735419047042,-500.0,0.00015514,2]
[346950270,1735419047051,-500.0,0.00015514,2]
[346950271,1735419047060,-500.0,0.00015514,2]
[346950272,1735419047070,-500.0,0.00015514,2]
[346950273,1735419047079,-500.0,0.00015514,2]
[346950274,1735419047088,-500.0,0.00015514,2]
[346950275,1735419047097,-500.0,0.00015514,2]
[346950276,1735419047106,-500.0,0.00015514,2]
[346950277,1735419047115,-500.0,0.00015514,2]
[346950278,1735419047124,-500.0,0.00015514,2]
[346950279,1735419047133,-500.0,0.00015514,2]
[346950280,1735419047142,-580.51,0.00015514,2]
[346950281,1735419047152,-500.0,0.00015514,2]
[346950282,1735419047161,-500.0,0.00015514,2]
[346950283,1735419047170,-500.0,0.00015514,2]
[346950284,1735419047179,-500.0,0.00015514,2]
[346950285,1735419047188,-500.0,0.00015514,2]
[346950286,1735419047198,-500.0,0.00015514,2]
[346950287,1735419047210,-500.0,0.00015514,2]
[346950288,1735419047220,-500.0,0.00015514,2]
[346950289,1735419047231,-500.0,0.00015514,2]
[346950290,1735419047242,-188.8464176,0.00015514,2]
[346950291,1735419047252,-500.0,0.00015514,2]
[346950292,1735419047263,-500.0,0.00015514,2]
[346950293,1735419047272,-500.0,0.00015514,2]
[346950294,1735419047282,-500.0,0.00015514,2]
[346950295,1735419047291,-500.0,0.00015514,2]
[346950296,1735419047301,-500.0,0.00015514,2]
[346950297,1735419047310,-452.36086737,0.00015514,2]
[346950298,1735419047319,-500.0,0.00015514,2]
[346950299,1735419047329,-500.0,0.00015514,2]
[346950300,1735419047339,-353.36983598,0.00015514,2]
[346950301,1735419047350,-500.0,0.00015514,2]
[346950302,1735419047359,-297.25,0.00015514,2]
[346950303,1735419047368,-500.0,0.00015514,2]
[346950304,1735419047377,-500.0,0.00015514,2]
[346950305,1735419047387,-500.0,0.00015515,2]
[346950306,1735419047396,-500.0,0.00015785,2]
[346950307,1735419047406,-244.77864057,0.00015785,2]
[346950308,1735419047415,-500.0,0.00015786,2]
[346950309,1735419047424,-500.0,0.00015786,2]
[346950310,1735419047434,-618.64,0.00015786,2]
[346950311,1735419047443,-500.0,0.00015786,2]
[346950312,1735419047453,-201.98,0.00015786,2]
[346950313,1735419047462,-500.0,0.00015786,2]
[346950314,1735419047471,-487.86211657,0.00015786,2]
[346950315,1735419047481,-1417.83,0.00015786,2]
[346950316,1735419047490,-500.0,0.00015786,2]
[346950317,1735419047499,-500.0,0.00015786,2]
[346950318,1735419047509,-500.0,0.00015787,2]
[346950319,1735419047518,-500.0,0.00015787,2]
[346950320,1735419047527,-567.38,0.00015787,2]
[346950321,1735419047536,-500.0,0.00015787,2]
[346950322,1735419047546,-500.0,0.00015787,2]
[346950323,1735419047555,-537.5,0.00015787,2]
[346950324,1735419047564,-298.14,0.00015787,2]
[346950325,1735419047573,-295.99,0.00015787,2]
[346950326,1735419047582,-526.12,0.00015787,2]
[346950327,1735419047591,-500.0,0.00015787,2]
[346950328,1735419047600,-500.0,0.00015788,2]
[346950329,1735419047609,-500.0,0.00015789,2]
[346950330,1735419047619,-500.0,0.0001606,2]
[346950331,1735419047628,-453.84,0.0001606,2]
[346950332,1735419047637,-1417.83,0.0001606,2]
[346950333,1735419047646,-195.60008817,0.0001606,2]
[346950334,1735419047655,-500.0,0.0001606,2]
[346950335,1735419047664,-614.47,0.00016061,2]
[346950336,1735419047674,-500.0,0.00016062,2]
[346950337,1735419047683,-500.0,0.00016063,2]
[346950338,1735419047692,-593.42,0.00016334,2]
[346950339,1735419047701,-1417.83,0.00016334,2]
[346950340,1735419047712,-500.0,0.00016334,2]
[346950341,1735419047721,-500.0,0.00016336,2]
[346950342,1735419047732,-500.0,0.00016337,2]
[346950343,1735419047742,-500.0,0.00016438,2]
[346950344,1735419047751,-500.0,0.00016438,2]
[346950345,1735419047760,-500.0,0.00016438,2]
[346950346,1735419047769,-388.92004731,0.00016438,2]
[346950347,1735419047780,-500.0,0.00016438,2]
[346950348,1735419047789,-1417.83,0.00016608,2]
[346950349,1735419047798,-500.0,0.00016608,2]
[346950350,1735419047809,-500.0,0.0001661,2]
[346950351,1735419047819,-500.0,0.00016611,2]
[346950352,1735419047828,-1417.83,0.00016882,2]
[346950353,1735419047837,-249.95708775,0.00016882,2]
[346950354,1735419047847,-416.7625832,0.00016884,2]
[346950355,1735419047855,-500.0,0.00016885,2]
[346950356,1735419047865,-1417.83,0.00017156,2]
[346950357,1735419047874,-500.0,0.00017159,2]
[346950358,1735419047883,-1417.83,0.0001743,2]
[346950359,1735419047892,-500.0,0.00017433,2]
[346950360,1735419047901,-1417.83,0.00017704,2]
[346950361,1735419047909,-643.22,0.00017707,2]
[346950362,1735419047918,-500.0,0.00017808,4]
[346950363,1735419047927,-1417.83,0.00017978,2]
[346950364,1735419047936,-1417.83,0.00018252,2]
[346950365,1735419047945,-1417.83,0.00018526,2]
[346950366,1735419047954,-162.01557227,0.000188,2]
[346950367,1735419047963,-1417.83,0.000188,2]
[346950368,1735419047972,-1747.32869534,0.000189,2]
[346950369,1735419047980,-1417.83,0.00019074,2]
[346950370,1735419047990,-500.0,0.00019178,6]
[346950371,1735419047998,-1417.83,0.00019348,2]
[346950372,1735419048007,-697.394,0.0001948,2]
[346950373,1735419048016,-1417.83,0.00019622,2]
[346950374,1735419048025,-1417.83,0.00019896,2]
[346950375,1735419048034,-1417.83,0.0002017,2]
[346950376,1735419048043,-278713.98858062,0.00020213,2]
[346950377,1735419048052,-499.0,0.00020273,2]
[346950378,1735419048061,-454.24234931,0.00020429,4]
[346950379,1735419048070,-735.03841852,0.00020431,7]
[346950380,1735419048079,-735.03841852,0.00020431,7]
[346950381,1735419048088,-735.03841852,0.00020431,7]
[346950382,1735419048097,-735.03841852,0.00020431,7]
[346950383,1735419048106,-735.03841852,0.00020431,7]
[346950384,1735419048116,-735.03841852,0.00020431,7]
[346950385,1735419048125,-735.03841852,0.00020431,7]
[346950386,1735419048134,-735.03841852,0.00020431,7]
[346950387,1735419048143,-735.03841852,0.00020431,7]
[346950388,1735419048152,-735.03841852,0.00020431,7]
[346950389,1735419048162,-735.03841852,0.00020431,7]
[346950390,1735419048172,-735.03841852,0.00020431,7]
[346950391,1735419048181,-735.03841852,0.00020431,7]
[346950392,1735419048190,-735.03841852,0.00020431,7]
[346950393,1735419048199,-735.03841852,0.00020431,7]
[346950394,1735419048209,-735.03841852,0.00020431,7]
[346950395,1735419048218,-735.03841852,0.00020431,7]
[346950396,1735419048228,-735.03841852,0.00020431,7]
[346950397,1735419048237,-735.03841852,0.00020431,7]
[346950398,1735419048247,-735.03,0.00020431,7]
[346950399,1735419048257,-1102.55762778,0.00020431,7]
[346950400,1735419048266,-1102.55762778,0.00020431,7]
[346950401,1735419048275,-1102.55762778,0.00020431,7]
[346950402,1735419048284,-1102.55762778,0.00020431,7]
[346950403,1735419048293,-1102.55762778,0.00020431,7]
[346950404,1735419048302,-1102.55762778,0.00020431,7]
[346950405,1735419048311,-1102.55762778,0.00020431,7]
[346950406,1735419048320,-1102.55762778,0.00020431,7]
[346950407,1735419048330,-1102.55762778,0.00020431,7]
[346950408,1735419048339,-1102.55762778,0.00020431,7]
[346950409,1735419048348,-1102.55762778,0.00020431,7]
[346950410,1735419048357,-1102.55762778,0.00020431,7]
[346950411,1735419048367,-1102.55762778,0.00020431,7]
[346950412,1735419048376,-1102.55762778,0.00020431,7]
[346950413,1735419048385,-1102.55762778,0.00020431,7]
[346950414,1735419048394,-1102.55762778,0.00020431,7]
[346950415,1735419048403,-1102.55762778,0.00020431,7]
[346950416,1735419048413,-1102.55762778,0.00020431,7]
[346950417,1735419048422,-1102.55762778,0.00020431,7]
[346950418,1735419048435,-1102.55,0.00020431,7]
[346950419,1735419048445,-173.45604605,0.00020431,7]
[346950420,1735419048455,-173.45604605,0.00020431,7]
[346950421,1735419048464,-173.45604605,0.00020431,7]
[346950422,1735419048474,-173.45604605,0.00020431,7]
[346950423,1735419048483,-173.45,0.00020431,7]
[346950424,1735419048492,-162.61504317,0.00020431,7]
[346950425,1735419048501,-162.61504317,0.00020431,7]
[346950426,1735419048510,-162.61504317,0.00020431,7]
[346950427,1735419048519,-162.61504317,0.00020431,7]
[346950428,1735419048528,-162.61504317,0.00020431,7]
[346950429,1735419048537,-162.61504317,0.00020431,7]
[346950430,1735419048546,-162.61504317,0.00020431,7]
[346950431,1735419048554,-162.61,0.00020431,7]
[346950432,1735419048563,-599.48035613,0.00020431,3]
[346950433,1735419048573,-516.0855222,0.00020432,7]
[346950434,1735419048582,-516.0855222,0.00020432,7]
[346950435,1735419048591,-516.0855222,0.00020432,7]
[346950436,1735419048600,-516.0855222,0.00020432,7]
[346950437,1735419048609,-516.0855222,0.00020432,7]
[346950438,1735419048619,-516.0855222,0.00020432,7]
[346950439,1735419048628,-516.0855222,0.00020432,7]
[346950440,1735419048638,-516.0855222,0.00020432,7]
[346950441,1735419048647,-516.0855222,0.00020432,7]
[346950442,1735419048657,-516.0855222,0.00020432,7]
[346950443,1735419048666,-516.0855222,0.00020432,7]
[346950444,1735419048675,-516.0855222,0.00020432,7]
[346950445,1735419048685,-516.0855222,0.00020432,7]
[346950446,1735419048694,-516.0855222,0.00020432,7]
[346950447,1735419048704,-516.0855222,0.00020432,7]
[346950448,1735419048713,-516.0855222,0.00020432,7]
[346950449,1735419048722,-516.0855222,0.00020432,7]
[346950450,1735419048734,-516.0855222,0.00020432,7]
[346950451,1735419048743,-516.0855222,0.00020432,7]
[346950452,1735419048753,-516.08,0.00020432,7]
[346950453,1735419048763,-774.1282833,0.00020432,7]
[346950454,1735419048772,-774.1282833,0.00020432,7]
[346950455,1735419048782,-774.1282833,0.00020432,7]
[346950456,1735419048791,-774.1282833,0.00020432,7]
[346950457,1735419048801,-774.1282833,0.00020432,7]
[346950458,1735419048810,-774.1282833,0.00020432,7]
[346950459,1735419048819,-774.1282833,0.00020432,7]
[346950460,1735419048829,-774.1282833,0.00020432,7]
[346950461,1735419048838,-774.1282833,0.00020432,7]
[346950462,1735419048847,-774.1282833,0.00020432,7]
[346950463,1735419048856,-774.1282833,0.00020432,7]
[346950464,1735419048865,-774.1282833,0.00020432,7]
[346950465,1735419048874,-774.1282833,0.00020432,7]
[346950466,1735419048883,-774.1282833,0.00020432,7]
[346950467,1735419048892,-774.1282833,0.00020432,7]
[346950468,1735419048900,-774.1282833,0.00020432,7]
[346950469,1735419048910,-774.1282833,0.00020432,7]
[346950470,1735419048919,-774.1282833,0.00020432,7]
[346950471,1735419048928,-774.1282833,0.00020432,7]
[346950472,1735419048938,-774.12,0.00020432,7]
[346950473,1735419048947,-23304.84780806,0.00020432,2]
[346950474,1735419048956,-1332.0,0.00020439,2]
[346950475,1735419048965,-1417.83,0.00020444,2]
[346950476,1735419048974,-400.0,0.00020447,2]
[346950477,1735419048984,-150.0,0.000205,2]
[346950478,1735419048993,-150.21,0.00020508,10]
[346950479,1735419049002,-150.21,0.00020508,10]
[346950480,1735419049011,-150.21,0.00020508,10]
[346950481,1735419049020,-150.21,0.00020508,10]
[346950482,1735419049029,-150.21,0.00020508,10]
[346950483,1735419049039,-150.21,0.00020508,2]
[346950484,1735419049048,-1012.224273,0.00020521,2]
[346950485,1735419049057,-151.0,0.00020531,2]
[346950486,1735419049067,-151.0,0.00020531,2]
[346950487,1735419049076,-151.0,0.00020531,2]
[346950488,1735419049087,-199.123598,0.00020531,2]
[346950489,1735419049176,-454.93367195,0.00020531,2]
[346950490,1735419049186,-4447.20596889,0.00020531,2]
[346950491,1735419049195,-221.49948334,0.00020532,10]
[346950492,1735419049210,-17250.00000004,0.00020532,10]
[346950493,1735419049226,-151.0,0.00020515,15]
[346950494,1735419049235,-9339.40008817,0.00020532,10]
[346950520,1735419953119,-154.02112611,0.00013695,2]
[346950521,1735419953141,-154.02112611,0.00013833,2]
[346950522,1735419953162,-400.0,0.00013973,2]
[346950523,1735419953184,-265.05142426,0.00015512,2]
[346950524,1735419953204,-521.26735195,0.00015512,2]
[346950525,1735419953225,-500.0,0.00015512,2]
[346950526,1735419953248,-500.0,0.00015512,2]
[346950527,1735419953269,-170.59286159,0.00015513,2]
[346950528,1735420025108,-500.0,0.00015203,2]
[346950529,1735420025131,-500.0,0.00015357,2]
[346950530,1735420025154,-500.0,0.00015511,2]
[346950531,1735420025176,-192.21048464,0.00015512,2]
[346950532,1735420030464,-500.0,0.00015051,2]
[346950533,1735420030486,-307.78951536,0.00015512,2]
[346950534,1735420030510,-356.92713841,0.00015513,2]
[346950535,1735420030532,-272.08996331,0.00015513,2]
[346950536,1735420033119,-227.91003669,0.00015513,2]
[346950537,1735420033141,-582.31,0.00015513,2]
[346950538,1735420033162,-242.84285867,0.00016438,2]
[346950555,1735420041180,-257.15714133,0.00016274,2]
[346950556,1735420041204,-257.15714133,0.00016438,2]
[346950557,1735420041226,-500.0,0.00017155,2]
[346950558,1735420041246,-500.0,0.00017155,2]
[346950559,1735420041273,-300.0,0.00017701,2]
[346950560,1735420041296,-500.0,0.00017702,2]
[346950561,1735420041318,-38.40657327,0.00017702,2]
[346950564,1735420226959,3477.0,0.0002,60]
[346950619,1735420232485,-340.50487871,0.00013833,2]
[346950621,1735420232495,-325.30222153,0.00013973,2]
[346950623,1735420232507,-74.69777847,0.00013973,2]
[346950625,1735420232518,-500.0,0.00017155,2]
[346950627,1735420232528,-2.52706387,0.00017701,2]
[346950630,1735420232540,-497.47293613,0.00017701,2]
[346950632,1735420232551,-500.0,0.00017701,2]
[346950634,1735420232561,-500.0,0.00017701,2]
[346950652,1735420232709,-500.0,0.00017701,2]
[346950654,1735420232719,-500.0,0.00017701,2]
[346950656,1735420232730,-500.0,0.00017701,2]
[346950657,1735420232740,-265.00213725,0.00017701,2]
[346950739,1735420243326,-340.50487871,0.00013695,2]
[346950740,1735420243336,-379.75786275,0.00017701,2]
[346950741,1735420243346,-428.18378534,0.00017701,2]
[346950742,1735420243358,-71.81621466,0.00017701,2]
[346950743,1735420243367,-533.79376496,0.00017701,2]
[346950775,1735420246440,-109.67623504,0.00017701,2]
[346950776,1735420246451,-560.25,0.00017701,2]
[346950777,1735420246463,-500.0,0.00017701,2]
[346950778,1735420246475,-500.0,0.00017701,2]
[346950779,1735420246488,-500.0,0.00017701,2]
[346950780,1735420246498,-461.59342673,0.00017702,2]
[346950781,1735420246508,-500.0,0.00017702,2]
[346950782,1735420246517,-500.0,0.00017702,2]
[346950783,1735420246528,-179.7,0.00017702,2]
[346950784,1735420246537,-568.24,0.00017702,2]
[346950785,1735420246546,-500.0,0.00017702,2]
[346950786,1735420246557,-500.0,0.00017702,2]
[346950787,1735420246566,-500.0,0.00017702,2]
[346950788,1735420246576,-490.9,0.00017702,2]
[346950789,1735420246585,-500.0,0.00017702,2]
[346950790,1735420246594,-500.0,0.00017702,2]
[346950791,1735420246603,-173.196,0.00017702,2]
[346950792,1735420246612,-500.0,0.00017702,2]
[346950793,1735420246622,-500.0,0.00017702,2]
[346950794,1735420246631,-500.0,0.00017702,2]
[346950795,1735420246640,-500.0,0.00017702,2]
[346950796,1735420246651,-500.0,0.00017702,2]
[346950797,1735420246661,-500.0,0.00017702,2]
[346950798,1735420246671,-500.0,0.00017702,2]
[346950799,1735420246680,-511.99,0.00017702,2]
[346950800,1735420246689,-500.0,0.00017702,2]
[346950801,1735420246700,-573.55,0.00017702,2]
[346950802,1735420246709,-500.0,0.00017702,2]
[346950803,1735420246718,-500.0,0.00017702,2]
[346950804,1735420246728,-500.0,0.00017702,2]
[346950805,1735420246736,-500.0,0.00017702,2]
[346950806,1735420246746,-443.63706688,0.00017702,2]
[346950807,1735420246755,-500.0,0.00017702,2]
[346950808,1735420246764,-500.0,0.00017702,2]
[346950809,1735420246775,-58.22727136,0.00017702,2]
[346950836,1735421049786,500.0,0.00020587,120]
[346950837,1735421133144,-242.84285867,0.00014899,2]
[346950838,1735421133167,-242.84285867,0.0001505,2]
[346950839,1735421133189,-300.0,0.00017281,2]
[346950840,1735421133210,-2051.70503607,0.00017282,2]
[346950843,1735421228100,-400.0,0.00013973,2]
[346950844,1735421228122,-322.69526167,0.00016938,2]
[346950845,1735421228143,-322.69526167,0.00017109,2]
[346950846,1735421228166,-379.8492541,0.00017155,2]
[346950847,1735421232158,-120.1507459,0.00017155,2]
[346950848,1735421232182,-483.48664441,0.00017429,2]
[346950849,1735421235134,-16.51335559,0.00017429,2]
[346950850,1735421235156,-173.06468352,0.00017596,2]
[346950851,1735421235178,-173.0646835,0.00017599,2]
[346950852,1735421235200,-276.48984635,0.000176,2]
[346950853,1735421235221,-173.0646835,0.00017601,2]
[346950854,1735421235243,-151.0,0.00017688,2]
[346950855,1735421235266,-163.27091536,0.00017694,2]
[346950856,1735421236109,-136.72908464,0.00017694,2]
[346950857,1735421236132,-500.0,0.00017695,2]
[346950858,1735421236155,-356.35568991,0.00017695,2]
[346950859,1735421254090,-343.72683321,0.00017695,2]
[346950860,1735421254116,-106.27578494,0.00017695,2]
[346950931,1735421432762,-160.64966008,0.00017594,2]
[346950933,1735421432772,-221.19187708,0.00017599,2]
[346950935,1735421432783,-171.86341661,0.00017694,2]
[346950937,1735421432792,-1542.28525465,0.00017694,2]
[346950939,1735421432803,-380.7,0.00017694,2]
[346950942,1735421432822,-1325.68499998,0.00017694,2]
[346951015,1735421438385,-500.0,0.00017693,2]
[346951016,1735421438394,-160.66605969,0.00017693,2]
[346951017,1735421438403,-522.64248872,0.00017693,2]
[346951018,1735421438413,-500.0,0.00017693,2]
[346951019,1735421438422,-491.35277967,0.00017693,2]
[346951020,1735421438431,-500.0,0.00017693,2]
[346951021,1735421438441,-522.64248872,0.00017693,2]
[346951022,1735421438450,-500.0,0.00017693,2]
[346951023,1735421438459,-500.0,0.00017693,2]
[346951024,1735421438468,-522.64248872,0.00017693,2]
[346951025,1735421438478,-410.40227649,0.00017693,2]
[346951026,1735421438487,-500.0,0.00017693,2]
[346951027,1735421438496,-522.64248872,0.00017693,2]
[346951028,1735421438505,-500.0,0.00017693,2]
[346951029,1735421438514,-522.64248872,0.00017693,2]
[346951030,1735421438523,-500.0,0.00017693,2]
[346951031,1735421438532,-522.64248872,0.00017693,2]
[346951032,1735421438541,-175.75215425,0.00017693,2]
[346951033,1735421438550,-522.64248872,0.00017693,2]
[346951034,1735421438559,-500.0,0.00017693,2]
[346951035,1735421438569,-522.64248872,0.00017693,2]
[346951036,1735421438578,-500.0,0.00017693,2]
[346951037,1735421438587,-522.64248872,0.00017693,2]
[346951038,1735421438596,-500.0,0.00017693,2]
[346951039,1735421438606,-522.64248872,0.00017693,2]
[346951040,1735421438615,-522.64248872,0.00017693,2]
[346951041,1735421438624,-500.0,0.00017693,2]
[346951042,1735421438634,-522.64248872,0.00017693,2]
[346951043,1735421438643,-500.0,0.00017693,2]
[346951044,1735421438652,-522.64248872,0.00017693,2]
[346951045,1735421438661,-500.0,0.00017693,2]
[346951046,1735421438670,-522.64248872,0.00017693,2]
[346951047,1735421438679,-500.0,0.00017693,2]
[346951048,1735421438778,-522.64248872,0.00017693,2]
[346951049,1735421438790,-522.64248872,0.00017693,2]
[346951050,1735421438799,-500.0,0.00017693,2]
[346951051,1735421438809,-522.64248872,0.00017693,2]
[346951052,1735421438818,-500.0,0.00017693,2]
[346951053,1735421438827,-522.64248872,0.00017693,2]
[346951054,1735421438836,-500.0,0.00017693,2]
[346951055,1735421438846,-522.64248872,0.00017693,2]
[346951056,1735421438856,-500.0,0.00017693,2]
[346951057,1735421438865,-522.64248872,0.00017693,2]
[346951058,1735421438875,-500.0,0.00017693,2]
[346951059,1735421438884,-522.64248872,0.00017693,2]
[346951060,1735421438894,-500.0,0.00017693,2]
[346951061,1735421438904,-522.64248872,0.00017693,2]
[346951062,1735421438914,-206.85409164,0.00017693,2]
[346951063,1735421438923,-522.64248872,0.00017693,2]
[346951064,1735421438933,-500.0,0.00017693,2]
[346951065,1735421438942,-522.64248872,0.00017693,2]
[346951066,1735421438952,-522.64248872,0.00017693,2]
[346951067,1735421438961,-522.64248872,0.00017693,2]
[346951068,1735421438971,-522.64248872,0.00017693,2]
[346951069,1735421438980,-522.64248872,0.00017693,2]
[346951070,1735421438990,-522.64248872,0.00017693,2]
[346951071,1735421438999,-522.64248872,0.00017693,2]
[346951072,1735421439009,-522.64248872,0.00017693,2]
[346951073,1735421439018,-522.64248872,0.00017693,2]
[346951074,1735421439027,-522.64248872,0.00017693,2]
[346951075,1735421439037,-522.64248872,0.00017693,2]
[346951076,1735421439046,-178.24329368,0.00017693,2]
[346951077,1735421439059,-344.39919504,0.00017693,2]
[346951078,1735421439069,-522.64248872,0.00017693,2]
[346951079,1735421439078,-522.64248872,0.00017693,2]